{"text_format":"1","workbook":"xlsx","n_sheets":4,"sheets":["Sheet1","Sheet2","Sheet3","Sheet4"],"not_rendered":{"charts":0,"images":0,"macros":0,"external_links":0,"defined_names":1,"comments":0,"pivot_tables":0},"unopened":[],"bounds":{"document_bytes":16777216,"sheet_cells":100000,"rows_first":2000,"rows_last":500,"rows_between":2000,"halvings":0,"cell_chars":16384,"cell_head_chars":4096},"cells_cut":0,"cells_raw":0,"read":"whole","date_system":"1900"}

{"sheet":"Sheet1","index":0,"n_rows":19,"n_cols":8,"rows_kept":19,"cut":false,"hidden":false,"merged":[[0,1,0,3],[1,4,1,5],[18,4,18,5]]}
["Week","2024 Events",null,null,"Food","Drink","$2 Game","Notes"]
["2024-04-30","Opening Night - Shotgun Start 5:00","3, 4, 5","Pick three holes you think you will score the best on. One par 3, one par 4, and one par 5.","Banquet on no matter the weather!",null,"Longest putt","Soup and Sandwiches\nFree Samples from the Boston Beer Company "]
[{"$f":"A2+7","v":"2024-05-07"},"Cinco de Hollow","Low Gross ","Straight up best score","Free chips & salsa","Specials on Margaritas","Most fairways"]
[{"$f":"A3+7","v":"2024-05-14"},null,"Fox in the Box","Clubhouse will choose holes for each player",null,null,"Closest to the pin"]
[{"$f":"A4+7","v":"2024-05-21"},null,"Putt Putt"," Count your putts - lowest and highest wins!",null,"Free drink ticket","Longest putt"]
[{"$f":"A5+7","v":"2024-05-28"},"Shotgun @5:30","Ball Toss Scramble","Each team gets one shot where they can toss the ball.","Beer and Bar Snacks Night",null,"Most fairways","Mini Clinic @5pm"]
[{"$f":"A6+7","v":"2024-06-04"},null,"Yellow Dandelion","Each foursome is given a yellow ball.  Teams that return with the ball will compete ",null,null,"Closest to the pin"]
[{"$f":"A7+7","v":"2024-06-11"},null,"Sandie, Barkie, Waivie","One point for each sand trap, tree or water hazard","Deals on Tacos",null,"Longest putt"]
[{"$f":"A8+7","v":"2024-06-18"},"Shotgun @ 5:30","2 person scramble","Players all hit from the best previous ball","Hawaiian Theme Night \nIce Cream Social",null,"Most fairways","Hawaiian Night!\nWear Hawaiian Gear\nMini Clinic @ 5pm"]
[{"$f":"A9+7","v":"2024-06-25"},null,"3 Little Pigs","Throw out highest 3 holes",null,null,"Closest to the pin"]
[{"$f":"A10+7","v":"2024-07-02"},null,"T and F","Only holes beginning with T or F count",null,"Free drink ticket","Longest putt"]
[{"$f":"A11+7","v":"2024-07-09"},null,"A Sure Thing","Each foursome will have a string. Putts count as one stroke within the string range. Low Net","Free Nachos",null,"Most fairways"]
[{"$f":"A12+7","v":"2024-07-16"},null,"Low Net","Best Score minus handicap ",null,null,"Closest to the pin"]
[{"$f":"A13+7","v":"2024-07-23"},"Shotgun @ 5:30","Odd or Even","Coin will be flipped at end of night to determine which holes count","Free chips & salsa",null,"Closest to the pin"]
[{"$f":"A14+7","v":"2024-07-30"},null,"3 and 5","Score Par 3 and Par 5 holes only (play all holes). ",null,null,"Most fairways"]
[{"$f":"A15+7","v":"2024-08-06"},"Shotgun @ 5:30","4 person best ball","Players play own shots.  Best score from the hole goes on the scorecard","Wine and Nine Night",null,"Longest putt","Mini Clinic @ 5pm"]
[{"$f":"A16+7","v":"2024-08-13"},null,"Greenies","Reach the green in regulation - receive one point.  Most points win!",null,"Free drink ticket","Longest putt"]
[{"$f":"A17+7","v":"2024-08-20"},"Shotgun @ 5:30","Low Gross ","Straight up best score",null,null,"Most fairways"]
[{"$f":"A18+7","v":"2024-08-27"},"End of Season Banquet - Shotgun start 5:00","4 person scramble","Players all hit. Shots are hit from the best previous shot.","Banquet on no matter the weather!",null,"Closest to the pin","Fiesta Taco Night! \nDress up in bright colors and fiesta attire!"]

{"sheet":"Sheet2","index":1,"n_rows":26,"n_cols":4,"rows_kept":26,"cut":false,"hidden":false,"merged":[]}
["TO DO:"]
[]
["Print off the birdie trees","Larger to write on","Jill"]
["Print off the agenda"]
["Print off the Tuesday Night Ladies League with new rules","Eric will share this"]
["Help with the GHIN - set-up on the first and second night","If they are a new person - someone can call them ahead of time.","use the first night to set it up"]
["NameTags - the first night and for us"]
["Take a picture to share "]
["Drink specials that are geared towards ladies","$1 off "]
["Could we suggest ladies drinks to order","White Claws, Flavored vodkas","We can let them know to go through us to give feedback","Then they can add it to the rotation."]
["Cart drinks later on the night? Should we recommend getting a cooler or an extra drink?"]
["Switch president to Cheryl"]
["Does Eric want to talk about the trial membership? How does this work?"]
["Subs - can't win the prizes, but you also don't need to find a sub","Not required to have subs - come and play "]
["Matt and Eric's Cell Phone","Cheryl is sending this out."]
[]
["Watch the Rockford Gauge","Top 10 flood ever"]
[]
["If a certain percentage of golfers finish, then they pay out for winners, otherwise they don't"]
[]
["matt@foxhollow"]
[]
["Wine"]
[]
["Open House - April 13th 1-5","We will be there - "]
["Need to send Eric the explanations of the games so he can add it to the website."]

{"sheet":"Sheet3","index":2,"n_rows":11,"n_cols":5,"rows_kept":11,"cut":false,"hidden":false,"merged":[]}
["Day One Agenda:"]
[null,null,null,null,"Favorite beverage to drink while golfing"]
["Welcome",null,null,null,"Least favorite part of golf"]
["Introductions",null,null,null,"Favorite event from last year"]
["Ice Breaker",null,null,null,"Why did you join the ladies league"]
["Rules/Eric News","Touch on the popular rules",null,null,"Favorite course you have played"]
["Instructor - Mini Clinics",null,null,null,"Favorite club you use in your bag"]
["Review basic rules"]
["Review Operational Rules","Add information about the subs"]
["Financial Overview/What does your registration fee cover"]
["Events and food "]

{"sheet":"Sheet4","index":3,"n_rows":25,"n_cols":12,"rows_kept":25,"cut":false,"hidden":false,"merged":[[0,1,0,3],[1,1,1,8],[2,4,2,5],[20,4,20,5]]}
["Week","2019 Events",null,null,"Food","Drink",null,"$2 Game","Notes",null,"Other Food Ideas","Mini Clinics"]
["2019-04-16","No League event - feel free to come out and get a round in ",null,null,null,null,null,null,null,null,"Wine and cheese/cracker platter","Chipping"]
["2019-04-23","Opening Night - Shotgun Start 5:00","3, 4, 5","Pick three holes you think you will score the best on. One par 3, one par 4, and one par 5.","Banquet on no matter the weather!",null,432,"Longest putt","Have ladies write down the three holes on a sign-up sheet.\nFree Drink Ticket?",null,"When you check in, do you want to participate?","Putting"]
["2019-04-30",null,"Poker Hand"," Best poker hand",null,null,null,"Most fairways",null,null,"$5 wine tasting","Driving"]
["2019-05-07","Cinco de Hollow","Fox in the Box"," Clubhouse will choose holes for each player.  (Add team score) ","Free chips & salsa","Margarita night ",54,"Closest to the pin",null,null,"$10 wine tasting and meet and cheese"]
["2019-05-14","Shotgun @ 5:30","Putt Putt"," Count your putts - lowest and highest wins!","Free Salad Bar",null,167,"Chip Closest                 to the Pin","Mini Clinic",null,"$1 off different drinks to get them to stay"]
["2019-05-21",null,"Sandie Barkie Wavie","One point for each tree, sand trap, or water hazzard",null,null,null,"Longest putt"]
["2019-05-28",null,"Yellow Dandelion","Each foursome is given a yellow ball.  Teams that return with the ball will compete ","1/2 off Pizzas",null,null,"Most fairways"]
["2019-06-04",null,"Low Gross","Straight up best score",null,null,null,"Closest to the pin"]
["2019-06-11","Shotgun @ 5:30","Ball Toss Scramble","Each team gets one shot where they can toss the ball.","Free Burgers",null,361,"Chip Closest                 to the Pin","Mini Clinic"]
["2019-06-18",null,"2 person scramble","Players all hit. Shots are hit from the best previous shot.",null,"Free drink ticket",249,"Longest putt"]
["2019-06-25",null,"A Sure Thing","Each foursome will have a string.  Putts count as one stroke within the string range. Low Net",null,null,null,"Most fairways"]
["2019-07-02","No league events - feel free to come out and play a round"]
["2019-07-09","Shotgun @ 5:30","T & F","Only holes beginning with T or F count. ","Free Nachos",null,324,"Closest to the pin","Mini Clinic"]
["2019-07-16",null,"Low Net","Best Score minus handicap ",null,null,null,"Shortest Drive"]
["2019-07-23",null,"Greenies","Reach the green in regulation - receive one point.  Most points win!","1/2 off Apps",null,null,"Longest putt"]
["2019-07-30",null,"Odd or Even","Coin will be flipped at end of night to determine which holes count.  ",null,null,null,"Most fairways"]
["2019-08-06",null,"4 person best ball","Players play own shots.  Best score from the hole goes on the scorecard",null,"Free drink ticket",249,"Closest to the pin"]
["2019-08-13","Shotgun @ 5:30"," Mutt and Jeff","Score Par 3 and Par 5 holes only (play all holes). ","Free chips & salsa",null,54,"Chip Closest                 to the Pin","Mini Clinic"]
["2019-08-20",null,"3 Little Pigs ","Throw out highest 3 holes. ",null,null,null,"Longest putt"]
["2019-08-27","End of Season Banquet - Shotgun start 5:00","4 person scramble","Players all hit. Shots are hit from the best previous shot.","Banquet on no matter the weather!",null,507,"Most fairways","Free Drink Ticket?"]
[null,null,null,null,null,"Total",{"$f":"SUM(G3:G21)","v":2397},null,{"$f":"60*65","v":3900}]
[null,null,null,null,null,"Chits",500]
[null,null,null,null,null,"Flight ",180]
[null,null,null,null,null,null,{"$f":"SUM(G22:G24)","v":3077}]